fUSD/lending_fUSD_20260625
["ID","MTS","AMOUNT","RATE_DAILY","PERIOD"]
[426407884,1782355840000,-500.0,0.00013698,2]
[426407880,1782355840000,-500.0,0.00013698,2]
[426407886,1782355840000,-500.0,0.00013698,2]
[426407889,1782355840000,-500.0,0.00013698,2]
[426407888,1782355840000,-500.0,0.00013698,2]
[426407887,1782355840000,-500.0,0.00013698,2]
[426407890,1782355840000,-500.0,0.00013698,2]
[426407866,1782355840000,-963.42,0.00013698,2]
[426407891,1782355840000,-500.0,0.00013698,2]
[426407879,1782355840000,-500.0,0.00013698,2]
[426407865,1782355840000,-963.42,0.00013698,2]
[426407851,1782355840000,-503.43300442,0.00013698,2]
[426407863,1782355840000,-963.42,0.00013698,2]
[426407893,1782355840000,-500.0,0.00013698,2]
[426407837,1782355840000,-212.73626041,0.00013698,2]
[426407840,1782355840000,-500.0,0.00013698,2]
[426407841,1782355840000,-500.0,0.00013698,2]
[426407838,1782355840000,-500.0,0.00013698,2]
[426407839,1782355840000,-500.0,0.00013698,2]
[426407843,1782355840000,-500.0,0.00013698,2]
[426407846,1782355840000,-500.0,0.00013698,2]
[426407842,1782355840000,-500.0,0.00013698,2]
[426407847,1782355840000,-500.0,0.00013698,2]
[426407845,1782355840000,-500.0,0.00013698,2]
[426407848,1782355840000,-500.0,0.00013698,2]
[426407864,1782355840000,-963.42,0.00013698,2]
[426407844,1782355840000,-500.0,0.00013698,2]
[426407850,1782355840000,-500.0,0.00013698,2]
[426407852,1782355840000,-500.0,0.00013698,2]
[426407853,1782355840000,-500.0,0.00013698,2]
[426407854,1782355840000,-500.0,0.00013698,2]
[426407856,1782355840000,-500.0,0.00013698,2]
[426407855,1782355840000,-500.0,0.00013698,2]
[426407857,1782355840000,-500.0,0.00013698,2]
[426407860,1782355840000,-963.42,0.00013698,2]
[426407861,1782355840000,-963.42,0.00013698,2]
[426407858,1782355840000,-500.0,0.00013698,2]
[426407859,1782355840000,-597.8510085,0.00013698,2]
[426407862,1782355840000,-963.42,0.00013698,2]
[426407849,1782355840000,-500.0,0.00013698,2]
[426407896,1782355840000,-4164.43,0.00013698,2]
[426407950,1782355840000,-150.0,0.00013956,2]
[426407892,1782355840000,-500.0,0.00013698,2]
[426407926,1782355840000,-150.0,0.0001376,2]
[426407927,1782355840000,-150.0,0.00013769,2]
[426407930,1782355840000,-150.0,0.00013787,2]
[426407928,1782355840000,-150.0,0.00013773,2]
[426407931,1782355840000,-150.0,0.000138,2]
[426407929,1782355840000,-150.0,0.00013773,2]
[426407932,1782355840000,-150.0,0.000138,2]
[426407933,1782355840000,-150.0,0.00013809,2]
[426407934,1782355840000,-150.0,0.00013831,2]
[426407935,1782355840000,-150.0,0.00013844,2]
[426407937,1782355840000,-150.0,0.00013862,2]
[426407939,1782355840000,-150.0,0.00013862,2]
[426407941,1782355840000,-150.0,0.00013887,2]
[426407936,1782355840000,-150.0,0.00013844,2]
[426407938,1782355840000,-150.0,0.00013862,2]
[426407942,1782355840000,-150.0,0.00013894,2]
[426407944,1782355840000,-150.0,0.00013916,2]
[426407943,1782355840000,-150.0,0.00013896,2]
[426407945,1782355840000,-150.0,0.00013916,2]
[426407946,1782355840000,-150.0,0.00013925,2]
[426407947,1782355840000,-150.0,0.00013925,2]
[426407948,1782355840000,-11772.11409155,0.00013946,2]
[426407951,1782355840000,-150.0,0.00013987,2]
[426407894,1782355840000,-500.0,0.00013698,2]
[426407949,1782355840000,-150.0,0.00013952,2]
[426407925,1782355840000,-150.0,0.00013737,2]
[426407924,1782355840000,-150.0,0.00013737,2]
[426407940,1782355840000,-150.0,0.0001388,2]
[426407921,1782355840000,-150.0,0.00013706,2]
[426407895,1782355840000,-4164.43,0.00013698,2]
[426407898,1782355840000,-4164.43,0.00013698,2]
[426407923,1782355840000,-150.0,0.00013737,2]
[426407899,1782355840000,-4164.43,0.00013698,2]
[426407897,1782355840000,-4164.43,0.00013698,2]
[426407900,1782355840000,-4164.43,0.00013698,2]
[426407901,1782355840000,-2720.41,0.00013698,2]
[426407903,1782355840000,-4164.43,0.00013698,2]
[426407904,1782355840000,-2720.41,0.00013698,2]
[426407905,1782355840000,-2720.41,0.00013698,2]
[426407906,1782355840000,-2720.41,0.00013698,2]
[426407907,1782355840000,-2720.41,0.00013698,2]
[426407908,1782355840000,-2720.41,0.00013698,2]
[426407902,1782355840000,-2720.41,0.00013698,2]
[426407917,1782355840000,-892.94,0.000137,2]
[426407922,1782355840000,-155.77,0.00013713,2]
[426407916,1782355840000,-766.47,0.000137,2]
[426407911,1782355840000,-723.67,0.00013699,2]
[426407919,1782355840000,-150.0,0.00013702,2]
[426407920,1782355840000,-150.0,0.00013702,2]
[426407914,1782355840000,-890.52,0.00013699,2]
[426407918,1782355840000,-886.07,0.000137,2]
[426407912,1782355840000,-213.72,0.00013699,2]
[426407913,1782355840000,-178.1,0.00013699,2]
[426407909,1782355840000,-200.0,0.00013699,2]
[426407910,1782355840000,-2500.0,0.00013699,2]
[426407915,1782355840000,-29773.0,0.00013699,2]
[426407991,1782355841000,-150.0,0.00014237,2]
[426407994,1782355841000,-150.0,0.00014237,2]
[426407993,1782355841000,-150.0,0.00014237,2]
[426407995,1782355841000,-11772.11409155,0.00014264,2]
[426407989,1782355841000,-150.0,0.00014206,2]
[426407988,1782355841000,-150.0,0.00014201,2]
[426407984,1782355841000,-150.0,0.00014175,2]
[426407987,1782355841000,-150.0,0.00014201,2]
[426407990,1782355841000,-150.0,0.00014237,2]
[426407985,1782355841000,-150.0,0.00014175,2]
[426407992,1782355841000,-150.0,0.00014237,2]
[426407986,1782355841000,-150.0,0.00014187,2]
[426408001,1782355841000,-150.0,0.00014299,2]
[426408008,1782355841000,-150.0,0.00014362,2]
[426407996,1782355841000,-150.0,0.00014268,2]
[426408000,1782355841000,-150.0,0.00014299,2]
[426407997,1782355841000,-150.0,0.00014273,2]
[426408002,1782355841000,-150.0,0.00014305,2]
[426407998,1782355841000,-150.0,0.00014273,2]
[426408005,1782355841000,-150.0,0.00014331,2]
[426408006,1782355841000,-150.0,0.00014344,2]
[426408007,1782355841000,-150.0,0.00014344,2]
[426408004,1782355841000,-266.73,0.00014311,2]
[426408003,1782355841000,-150.0,0.00014308,2]
[426408010,1782355841000,-150.0,0.0001438,2]
[426407980,1782355841000,-150.0,0.00014143,2]
[426407999,1782355841000,-150.0,0.00014287,2]
[426407982,1782355841000,-150.0,0.00014166,2]
[426407957,1782355841000,-500.0,0.00013989,2]
[426407983,1782355841000,-150.0,0.00014169,2]
[426408011,1782355841000,-150.0,0.00014387,2]
[426407952,1782355841000,-150.0,0.00013987,2]
[426407953,1782355841000,-150.0,0.00013987,2]
[426407954,1782355841000,-150.0,0.00013987,2]
[426407958,1782355841000,-963.42,0.00013989,2]
[426407956,1782355841000,-1385.33,0.00013989,2]
[426407955,1782355841000,-150.0,0.00013987,2]
[426407961,1782355841000,-3633.285982,0.00014,2]
[426407960,1782355841000,-60000.0,0.0001399,2]
[426407959,1782355841000,-500.0,0.00013989,2]
[426407962,1782355841000,-636.88,0.00014008,2]
[426407964,1782355841000,-506.7044339,0.00014019,2]
[426407963,1782355841000,-150.0,0.00014018,2]
[426407981,1782355841000,-313.0,0.00014162,2]
[426407965,1782355841000,-150.0,0.00014023,2]
[426407970,1782355841000,-150.0,0.00014059,2]
[426407968,1782355841000,-150.0,0.0001405,2]
[426407966,1782355841000,-150.0,0.00014033,2]
[426407969,1782355841000,-150.0,0.0001405,2]
[426407971,1782355841000,-150.0,0.00014059,2]
[426407973,1782355841000,-150.0,0.00014087,2]
[426407972,1782355841000,-150.0,0.00014081,2]
[426407977,1782355841000,-150.0,0.00014112,2]
[426407975,1782355841000,-14105.89154669,0.00014095,2]
[426407976,1782355841000,-150.0,0.00014112,2]
[426407974,1782355841000,-150.0,0.00014094,2]
[426407978,1782355841000,-150.0,0.0001413,2]
[426407979,1782355841000,-150.0,0.0001413,2]
[426407967,1782355841000,-150.0,0.0001405,2]
[426408009,1782355841000,-150.0,0.00014362,2]
[426408026,1782355841000,-14105.89154669,0.00014497,2]
[426408012,1782355841000,-150.0,0.00014393,2]
[426408047,1782355841000,-766.47,0.00014668,2]
[426408051,1782355841000,-766.65887997,0.00014668,2]
[426408049,1782355841000,-766.47,0.00014668,2]
[426408046,1782355841000,-150.0,0.00014665,2]
[426408050,1782355841000,-766.47,0.00014668,2]
[426408048,1782355841000,-766.47,0.00014668,2]
[426408056,1782355841000,-892.97486736,0.00014668,2]
[426408052,1782355841000,-892.94,0.00014668,2]
[426408055,1782355841000,-892.94,0.00014668,2]
[426408054,1782355841000,-892.94,0.00014668,2]
[426408053,1782355841000,-892.94,0.00014668,2]
[426408058,1782355841000,-886.07,0.00014668,2]
[426408062,1782355841000,-150.0,0.00014674,2]
[426408061,1782355841000,-886.13095312,0.00014668,2]
[426408057,1782355841000,-886.07,0.00014668,2]
[426408060,1782355841000,-886.07,0.00014668,2]
[426408063,1782355841000,-150.0,0.00014674,2]
[426408059,1782355841000,-886.07,0.00014668,2]
[426408065,1782355841000,-150.0,0.00014701,2]
[426408068,1782355841000,-150.0,0.00014714,2]
[426408066,1782355841000,-150.0,0.00014701,2]
[426408064,1782355841000,-150.0,0.00014687,2]
[426408067,1782355841000,-150.0,0.00014705,2]
[426408069,1782355841000,-150.0,0.00014737,2]
[426408071,1782355841000,-150.0,0.00014737,2]
[426408070,1782355841000,-150.0,0.00014737,2]
[426408013,1782355841000,-150.0,0.00014415,2]
[426408045,1782355841000,-150.0,0.00014643,2]
[426408043,1782355841000,-151.0,0.0001463,2]
[426408072,1782355841000,-588.51,0.00014745,2]
[426408042,1782355841000,-150.0,0.00014629,2]
[426408041,1782355841000,-150.0,0.00014629,2]
[426408018,1782355841000,-150.0,0.00014441,2]
[426408017,1782355841000,-150.0,0.00014424,2]
[426408019,1782355841000,-150.0,0.00014451,2]
[426408015,1782355841000,-150.0,0.00014424,2]
[426408016,1782355841000,-150.0,0.00014424,2]
[426408022,1782355841000,-150.0,0.00014487,2]
[426408025,1782355841000,-150.0,0.00014487,2]
[426408021,1782355841000,-150.0,0.00014487,2]
[426408020,1782355841000,-150.0,0.00014456,2]
[426408024,1782355841000,-150.0,0.00014487,2]
[426408023,1782355841000,-150.0,0.00014487,2]
[426408027,1782355841000,-150.0,0.00014518,2]
[426408014,1782355841000,-150.0,0.00014415,2]
[426408030,1782355841000,-150.0,0.00014549,2]
[426408044,1782355841000,-151.0,0.0001463,2]
[426408040,1782355841000,-150.0,0.00014612,2]
[426408036,1782355841000,-150.0,0.00014587,2]
[426408033,1782355841000,-150.0,0.00014578,2]
[426408029,1782355841000,-150.0,0.00014549,2]
[426408037,1782355841000,-150.0,0.00014594,2]
[426408035,1782355841000,-11772.11409155,0.00014582,2]
[426408032,1782355841000,-150.0,0.00014558,2]
[426408034,1782355841000,-150.0,0.0001458,2]
[426408038,1782355841000,-150.0,0.00014612,2]
[426408031,1782355841000,-150.0,0.00014558,2]
[426408028,1782355841000,-150.0,0.00014522,2]
[426408039,1782355841000,-150.0,0.00014612,2]
[426408116,1782355842000,-500.0,0.00014899,2]
[426408109,1782355842000,-500.0,0.00014899,2]
[426408112,1782355842000,-500.0,0.00014899,2]
[426408106,1782355842000,-150.0,0.00014893,2]
[426408104,1782355842000,-150.0,0.00014886,2]
[426408108,1782355842000,-500.0,0.00014899,2]
[426408111,1782355842000,-500.0,0.00014899,2]
[426408107,1782355842000,-10000.0,0.00014896,2]
[426408102,1782355842000,-426.0,0.0001488,2]
[426408113,1782355842000,-500.0,0.00014899,2]
[426408110,1782355842000,-500.0,0.00014899,2]
[426408118,1782355842000,-500.0,0.00014899,2]
[426408123,1782355842000,-500.0,0.00014899,2]
[426408114,1782355842000,-500.0,0.00014899,2]
[426408117,1782355842000,-500.0,0.00014899,2]
[426408121,1782355842000,-411.39812541,0.00014899,2]
[426408122,1782355842000,-500.0,0.00014899,2]
[426408100,1782355842000,-426.0,0.00014877,2]
[426408119,1782355842000,-500.0,0.00014899,2]
[426408120,1782355842000,-500.0,0.00014899,2]
[426408124,1782355842000,-500.0,0.00014899,2]
[426408125,1782355842000,-216.16972641,0.00014899,2]
[426408126,1782355842000,-963.42,0.00014899,2]
[426408128,1782355842000,-963.42,0.00014899,2]
[426408127,1782355842000,-963.42,0.00014899,2]
[426408129,1782355842000,-963.42,0.00014899,2]
[426408115,1782355842000,-500.0,0.00014899,2]
[426408103,1782355842000,-426.0,0.00014885,2]
[426408094,1782355842000,-1385.33,0.00014864,2]
[426408105,1782355842000,-426.0,0.00014889,2]
[426408131,1782355842000,-963.42,0.00014899,2]
[426408075,1782355842000,-150.0,0.00014772,2]
[426408073,1782355842000,-150.0,0.00014768,2]
[426408074,1782355842000,-150.0,0.00014772,2]
[426408076,1782355842000,-150.0,0.00014786,2]
[426408079,1782355842000,-150.0,0.00014799,2]
[426408078,1782355842000,-150.0,0.00014799,2]
[426408077,1782355842000,-150.0,0.00014799,2]
[426408080,1782355842000,-481.33709945,0.00014799,2]
[426408081,1782355842000,-481.33709944,0.000148,2]
[426408083,1782355842000,-481.33709944,0.000148,2]
[426408086,1782355842000,-150.0,0.0001483,2]
[426408101,1782355842000,-150.0,0.00014879,2]
[426408087,1782355842000,-150.0,0.00014844,2]
[426408082,1782355842000,-10000.0,0.000148,2]
[426408085,1782355842000,-150.0,0.00014808,2]
[426408092,1782355842000,-150.0,0.00014861,2]
[426408091,1782355842000,-1252.0,0.00014851,2]
[426408089,1782355842000,-150.0,0.0001485,2]
[426408090,1782355842000,-306.26455582,0.00014851,2]
[426408093,1782355842000,-150.0,0.00014861,2]
[426408095,1782355842000,-500.0,0.00014876,2]
[426408099,1782355842000,-52809.0,0.00014877,2]
[426408096,1782355842000,-500.0,0.00014876,2]
[426408097,1782355842000,-4164.43,0.00014876,2]
[426408098,1782355842000,-2720.41,0.00014876,2]
[426408084,1782355842000,-190.85045223,0.000148,2]
[426408132,1782355842000,-963.42,0.00014899,2]
[426408088,1782355842000,-150.0,0.00014844,2]
[426408133,1782355842000,-963.42,0.00014899,2]
[426408175,1782355842000,-2720.41,0.00014899,2]
[426408173,1782355842000,-4164.43,0.00014899,2]
[426408176,1782355842000,-4164.43,0.00014899,2]
[426408178,1782355842000,-2720.41,0.00014899,2]
[426408177,1782355842000,-2720.41,0.00014899,2]
[426408179,1782355842000,-2720.41,0.00014899,2]
[426408180,1782355842000,-2720.41,0.00014899,2]
[426408170,1782355842000,-2720.41,0.00014899,2]
[426408184,1782355842000,-2720.41,0.00014899,2]
[426408188,1782355842000,-5800.0,0.000149,2]
[426408189,1782355842000,-33329.5859,0.000149,2]
[426408182,1782355842000,-2720.41,0.00014899,2]
[426408165,1782355842000,-2720.41,0.00014899,2]
[426408186,1782355842000,-2720.41,0.00014899,2]
[426408192,1782355842000,-350.20148926,0.000149,3]
[426408196,1782355842000,-298.86387065,0.000149,2]
[426408194,1782355842000,-14105.89154669,0.000149,2]
[426408195,1782355842000,-11772.11409155,0.000149,2]
[426408193,1782355842000,-872.22513424,0.000149,2]
[426408198,1782355842000,-150.0,0.00014915,2]
[426408197,1782355842000,-150.0,0.00014915,2]
[426408201,1782355842000,-150.0,0.00014924,2]
[426408199,1782355842000,-855.48,0.00014917,2]
[426408200,1782355842000,-150.0,0.00014924,2]
[426408203,1782355842000,-3405.431,0.00014933,2]
[426408202,1782355842000,-172.84,0.00014926,2]
[426408191,1782355842000,-914.45,0.000149,2]
[426408161,1782355842000,-4164.43,0.00014899,2]
[426408190,1782355842000,-426.0,0.000149,2]
[426408162,1782355842000,-4164.43,0.00014899,2]
[426408160,1782355842000,-4164.43,0.00014899,2]
[426408134,1782355842000,-963.42,0.00014899,2]
[426408130,1782355842000,-963.42,0.00014899,2]
[426408135,1782355842000,-963.42,0.00014899,2]
[426408138,1782355842000,-963.42,0.00014899,2]
[426408141,1782355842000,-500.0,0.00014899,2]
[426408137,1782355842000,-963.42,0.00014899,2]
[426408140,1782355842000,-963.5617054,0.00014899,2]
[426408139,1782355842000,-963.42,0.00014899,2]
[426408144,1782355842000,-500.0,0.00014899,2]
[426408145,1782355842000,-500.0,0.00014899,2]
[426408142,1782355842000,-500.0,0.00014899,2]
[426408148,1782355842000,-500.0,0.00014899,2]
[426408146,1782355842000,-500.0,0.00014899,2]
[426408136,1782355842000,-963.42,0.00014899,2]
[426408143,1782355842000,-162.62682509,0.00014899,2]
[426408168,1782355842000,-4164.43,0.00014899,2]
[426408147,1782355842000,-500.0,0.00014899,2]
[426408157,1782355842000,-4164.43,0.00014899,2]
[426408159,1782355842000,-4164.43,0.00014899,2]
[426408158,1782355842000,-4164.43,0.00014899,2]
[426408155,1782355842000,-263.63356978,0.00014899,2]
[426408156,1782355842000,-4164.43,0.00014899,2]
[426408150,1782355842000,-500.0,0.00014899,2]
[426408152,1782355842000,-500.0,0.00014899,2]
[426408151,1782355842000,-500.0,0.00014899,2]
[426408153,1782355842000,-500.0,0.00014899,2]
[426408149,1782355842000,-500.0,0.00014899,2]
[426408154,1782355842000,-500.0,0.00014899,2]
[426408235,1782355843000,-2720.41,0.00014999,2]
[426408228,1782355843000,-4164.43,0.00014999,2]
[426408230,1782355843000,-4164.66806449,0.00014999,2]
[426408226,1782355843000,-4164.43,0.00014999,2]
[426408224,1782355843000,-201.5339966,0.00014996,2]
[426408231,1782355843000,-2720.41,0.00014999,2]
[426408234,1782355843000,-2720.41,0.00014999,2]
[426408232,1782355843000,-2720.41,0.00014999,2]
[426408243,1782355843000,-172.06290735,0.00015,2]
[426408236,1782355843000,-2720.56164048,0.00014999,2]
[426408237,1782355843000,-493622.09560525,0.00015,2]
[426408239,1782355843000,-81162.51556837,0.00015,7]
[426408238,1782355843000,-2005762.87797716,0.00015,2]
[426408225,1782355843000,-4164.43,0.00014999,2]
[426408244,1782355843000,-10023.80093977,0.00015,2]
[426408240,1782355843000,-310.0,0.00015,2]
[426408241,1782355843000,-153.0,0.00015,2]
[426408242,1782355843000,-319.0,0.00015,2]
[426408233,1782355843000,-2720.41,0.00014999,2]
[426408229,1782355843000,-4164.43,0.00014999,2]
[426408223,1782355843000,-1385.53379645,0.00014995,2]
[426408218,1782355843000,-1385.33,0.00014995,2]
[426408245,1782355843000,-10269.2055558,0.00015,2]
[426408204,1782355843000,-213.629,0.00014933,2]
[426408207,1782355843000,-150.0,0.00014955,2]
[426408205,1782355843000,-164.52532535,0.0001495,2]
[426408206,1782355843000,-150.0,0.00014951,2]
[426408209,1782355843000,-154.90967615,0.00014986,2]
[426408208,1782355843000,-426.0,0.00014964,2]
[426408211,1782355843000,-154.74273707,0.00014986,2]
[426408227,1782355843000,-4164.43,0.00014999,2]
[426408210,1782355843000,-151.69917575,0.00014986,2]
[426408213,1782355843000,-155.23889803,0.00014986,2]
[426408215,1782355843000,-156.08154967,0.00014986,2]
[426408216,1782355843000,-172.94357093,0.00014986,2]
[426408217,1782355843000,-224.26856727,0.0001499,2]
[426408221,1782355843000,-1385.33,0.00014995,2]
[426408220,1782355843000,-1385.33,0.00014995,2]
[426408219,1782355843000,-1385.33,0.00014995,2]
[426408222,1782355843000,-1385.33,0.00014995,2]
[426408214,1782355843000,-214.17768085,0.00014986,2]
[426408212,1782355843000,-157.69706126,0.00014986,2]
[426408246,1782355843000,-834244.9326221,0.00015,2]
[426408247,1782355843000,-151.0,0.00015,2]
[426408272,1782355843000,-1767.74547867,0.00015473,2]
[426408275,1782355843000,-1767.74547867,0.00015596,2]
[426408274,1782355843000,-10023.80093977,0.000155,2]
[426408273,1782355843000,-531.22948741,0.0001549,2]
[426408276,1782355843000,-10023.80093977,0.000156,2]
[426408278,1782355843000,-183.3,0.0001565,2]
[426408282,1782355843000,-1767.74547867,0.00015737,2]
[426408279,1782355843000,-1767.74547867,0.00015678,2]
[426408271,1782355843000,-531.22948741,0.00015469,2]
[426408280,1782355843000,-531.22948741,0.00015695,2]
[426408277,1782355843000,-531.22948741,0.00015621,2]
[426408283,1782355843000,-10023.80093977,0.000158,2]
[426408286,1782355843000,-1767.74547867,0.00015864,2]
[426408287,1782355843000,-10023.80093977,0.000159,2]
[426408284,1782355843000,-531.22948741,0.00015823,2]
[426408288,1782355843000,-1767.74547867,0.00015909,2]
[426408289,1782355843000,-531.22948741,0.00015918,2]
[426408249,1782355843000,-175.461936,0.00015,2]
[426408281,1782355843000,-1767.74547867,0.00015715,2]
[426408265,1782355843000,-10023.80093977,0.000153,2]
[426408285,1782355843000,-1767.74547867,0.00015857,2]
[426408266,1782355843000,-1767.74547867,0.00015306,2]
[426408248,1782355843000,-151.0,0.00015,2]
[426408268,1782355843000,-155.77,0.00015428,2]
[426408250,1782355843000,-154.669306,0.00015,2]
[426408254,1782355843000,-151.13177012,0.00015068,2]
[426408251,1782355843000,-151.0,0.00015,2]
[426408257,1782355843000,-531.22948741,0.00015124,2]
[426408255,1782355843000,-636.88,0.00015101,2]
[426408252,1782355843000,-185.1937,0.00015,2]
[426408256,1782355843000,-1767.74547867,0.00015121,2]
[426408253,1782355843000,-336.49,0.00015055,2]
[426408258,1782355843000,-1767.74547867,0.00015126,2]
[426408263,1782355843000,-1767.74547867,0.00015253,2]
[426408259,1782355843000,-531.22948741,0.00015147,2]
[426408260,1782355843000,-531.22948741,0.00015185,2]
[426408262,1782355843000,-165.47,0.0001525,2]
[426408264,1782355843000,-531.22948741,0.00015256,2]
[426408270,1782355843000,-483.67122643,0.00015449,2]
[426408269,1782355843000,-1767.74547867,0.00015442,2]
[426408261,1782355843000,-10023.80093977,0.000152,2]
[426408267,1782355843000,-186.43,0.00015348,2]
[426408331,1782355844000,-177.08,0.00017915,2]
[426408332,1782355844000,-932.0,0.00017936,2]
[426408327,1782355844000,-636.88,0.00017286,2]
[426408325,1782355844000,-10023.80093977,0.000172,2]
[426408328,1782355844000,-190.85045221,0.00017568,2]
[426408326,1782355844000,-262.0,0.0001726,2]
[426408330,1782355844000,-203.64,0.00017913,2]
[426408322,1782355844000,-10023.80093977,0.000171,2]
[426408321,1782355844000,-4015.05532469,0.00017087,2]
[426408333,1782355844000,-221.34,0.00017986,2]
[426408323,1782355844000,-170.07,0.00017104,2]
[426408329,1782355844000,-200.0,0.00017616,2]
[426408334,1782355844000,-62920.62797204,0.00018,2]
[426408348,1782355844000,-1562.72193083,0.000185,2]
[426408335,1782355844000,-1212.02328487,0.00018,2]
[426408337,1782355844000,-350.0,0.00018,2]
[426408340,1782355844000,-1808.68877903,0.000181,2]
[426408338,1782355844000,-189.8698782,0.00018,2]
[426408342,1782355844000,-1562.72193083,0.000182,2]
[426408339,1782355844000,-1562.72193083,0.00018,2]
[426408341,1782355844000,-189.8698782,0.000182,2]
[426408349,1782355844000,-195.784,0.00018596,2]
[426408343,1782355844000,-636.88,0.00018378,2]
[426408344,1782355844000,-189.8698782,0.000184,2]
[426408345,1782355844000,-1562.72193083,0.000184,2]
[426408347,1782355844000,-189.8698782,0.000185,2]
[426408319,1782355844000,-10023.80093977,0.000167,2]
[426408336,1782355844000,-286.7,0.00018,2]
[426408324,1782355844000,-170.07,0.00017104,2]
[426408295,1782355844000,-1767.74547867,0.00016014,2]
[426408315,1782355844000,-491.0,0.00016549,2]
[426408346,1782355844000,-231.56754967,0.000184,2]
[426408294,1782355844000,-1767.74547867,0.00016,2]
[426408291,1782355844000,-1767.74547867,0.0001599,2]
[426408293,1782355844000,-300.0,0.00016,2]
[426408290,1782355844000,-500.0,0.00015945,2]
[426408292,1782355844000,-160.0,0.00016,8]
[426408298,1782355844000,-10023.80093977,0.000161,2]
[426408300,1782355844000,-10023.80093977,0.000162,2]
[426408296,1782355844000,-1767.74547867,0.00016044,2]
[426408297,1782355844000,-1767.74547867,0.00016065,2]
[426408299,1782355844000,-636.88,0.00016193,2]
[426408303,1782355844000,-914.45,0.000164,2]
[426408304,1782355844000,-165.47,0.00016412,2]
[426408305,1782355844000,-262.0,0.00016438,2]
[426408301,1782355844000,-2129.0,0.00016317,2]
[426408302,1782355844000,-10023.80093977,0.000164,2]
[426408306,1782355844000,-622.57,0.00016438,2]
[426408307,1782355844000,-1370.93,0.00016474,2]
[426408309,1782355844000,-821.99,0.00016474,2]
[426408310,1782355844000,-165.813,0.00016549,2]
[426408308,1782355844000,-33046.24,0.00016474,2]
[426408311,1782355844000,-3562.0,0.00016549,2]
[426408313,1782355844000,-1277.0,0.00016549,2]
[426408314,1782355844000,-1237.844,0.00016549,2]
[426408312,1782355844000,-1361.0,0.00016549,2]
[426408316,1782355844000,-217.356,0.00016549,2]
[426408317,1782355844000,-6142.852,0.00016549,2]
[426408318,1782355844000,-10023.80093977,0.000166,2]
[426408351,1782355844000,-167.9,0.00018596,2]
[426408320,1782355844000,-10023.80093977,0.000169,2]
[426408354,1782355844000,-914.45,0.000186,2]
[426408382,1782355844000,-151.0,0.00019519,2]
[426408384,1782355844000,-151.0,0.00019519,2]
[426408383,1782355844000,-151.0,0.00019519,2]
[426408387,1782355844000,-151.0,0.00019519,2]
[426408388,1782355844000,-151.0,0.00019519,2]
[426408389,1782355844000,-151.0,0.00019519,2]
[426408391,1782355844000,-151.0,0.00019519,2]
[426408392,1782355844000,-151.0,0.00019519,2]
[426408390,1782355844000,-151.0,0.00019519,2]
[426408393,1782355844000,-151.0,0.00019519,2]
[426408397,1782355844000,-1361.0,0.00019549,2]
[426408399,1782355844000,-1230.0,0.00019549,2]
[426408396,1782355844000,-3562.0,0.00019549,2]